[Event "Early-Titled-Tuesday-Blitz-April-16-2024"]
[Site "Chess.com"]
[Date "2024.04.16"]
[Round "11"]
[White "jinxy2009"]
[Black "osielchesslover2011"]
[Result "0-1"]
[WhiteElo "2345"]
[BlackElo "2147"]
[TimeControl "180+1"]
[EndTime "10:12:13 PDT"]
[Termination "osielchesslover2011 won by resignation"]

1. e4 {[%clk 0:03:00.9]} 1... c5 {[%clk 0:03:00.1]} 2. Nf3 {[%clk 0:03:00.4]}
2... d6 {[%clk 0:03:00.6]} 3. d4 {[%clk 0:03:00.7]} 3... cxd4 {[%clk 0:03:01.3]}
4. Nxd4 {[%clk 0:03:01.6]} 4... Nf6 {[%clk 0:03:01.5]} 5. Nc3 {[%clk 0:03:02]}
5... a6 {[%clk 0:03:01.9]} 6. Be3 {[%clk 0:03:01.6]} 6... e6 {[%clk 0:03:02.4]}
7. g4 {[%clk 0:03:01.2]} 7... Be7 {[%clk 0:03:02]} 8. g5 {[%clk 0:03:00.7]} 8...
Nfd7 {[%clk 0:03:01.9]} 9. h4 {[%clk 0:03:01.1]} 9... Qc7 {[%clk 0:03:01.8]} 10.
Qd2 {[%clk 0:03:01.4]} 10... Nc6 {[%clk 0:03:02.1]} 11. O-O-O {[%clk 0:03:01.6]}
11... b5 {[%clk 0:03:02.4]} 12. f4 {[%clk 0:03:00.3]} 12... b4 {[%clk
0:03:02.5]} 13. Nce2 {[%clk 0:02:59.8]} 13... Nc5 {[%clk 0:03:02.6]} 14. Bg2
{[%clk 0:02:59]} 14... Bb7 {[%clk 0:02:54.4]} 15. Ng3 {[%clk 0:02:49.7]} 15...
Nxd4 {[%clk 0:02:48.4]} 16. Bxd4 {[%clk 0:02:50.6]} 16... b3 {[%clk 0:02:48.8]}
17. Kb1 {[%clk 0:02:39.2]} 17... bxa2+ {[%clk 0:02:42.7]} 18. Ka1 {[%clk
0:02:37.5]} 18... Rb8 {[%clk 0:02:32.5]} 19. Bxg7 {[%clk 0:02:34.2]} 19... Rg8
{[%clk 0:02:30.8]} 20. Bc3 {[%clk 0:02:24.5]} 20... Na4 {[%clk 0:02:29.7]} 21.
Ba5 {[%clk 0:02:22.4]} 21... Qc6 {[%clk 0:02:18.2]} 22. Rhg1 {[%clk 0:02:10]}
22... Qb5 {[%clk 0:01:55.5]} 23. b3 {[%clk 0:02:07]} 23... Nc5 {[%clk
0:01:51.9]} 24. Bf1 {[%clk 0:01:53.7]} 24... Qc6 {[%clk 0:01:41.1]} 25. f5
{[%clk 0:01:51.7]} 25... Nxe4 {[%clk 0:01:34.2]} 26. Nxe4 {[%clk 0:01:51.6]}
26... Qxe4 {[%clk 0:01:34.7]} 27. fxe6 {[%clk 0:01:43.3]} 27... fxe6 {[%clk
0:01:21.8]} 28. Bg2 {[%clk 0:01:43.4]} 28... Qe5+ {[%clk 0:00:50.9]} 29. Bc3
{[%clk 0:01:42.8]} 29... Qb5 {[%clk 0:00:50.4]} 30. Bxb7 {[%clk 0:01:40.3]}
30... Qxb7 {[%clk 0:00:47.1]} 31. Rge1 {[%clk 0:01:38.9]} 31... e5 {[%clk
0:00:45.7]} 32. Bxe5 {[%clk 0:01:29.1]} 32... dxe5 {[%clk 0:00:38.8]} 33. Rxe5
{[%clk 0:01:30]} 33... Qc7 {[%clk 0:00:35.7]} 34. Rde1 {[%clk 0:00:59.3]} 34...
Rg7 {[%clk 0:00:34.2]} 35. h5 {[%clk 0:00:59.5]} 35... Rb5 {[%clk 0:00:19.8]}
36. Rxb5 {[%clk 0:00:35.3]} 36... axb5 {[%clk 0:00:16.9]} 37. Qd5 {[%clk
0:00:35.1]} 37... Qc3+ {[%clk 0:00:11.2]} 38. Kxa2 {[%clk 0:00:32.1]} 38... Qa5+
{[%clk 0:00:08.5]} 39. Kb2 {[%clk 0:00:30.9]} 39... Qxe1 {[%clk 0:00:09]} 40.
Qxb5+ {[%clk 0:00:28.6]} 40... Kf8 {[%clk 0:00:06.3]} 41. Qf5+ {[%clk
0:00:20.7]} 41... Rf7 {[%clk 0:00:06.1]} 42. Qc8+ {[%clk 0:00:20.4]} 42... Kg7
{[%clk 0:00:05.7]} 43. Qc3+ {[%clk 0:00:19.6]} 43... Qxc3+ {[%clk 0:00:04.8]}
44. Kxc3 {[%clk 0:00:20.5]} 44... Bxg5 {[%clk 0:00:04.9]} 45. b4 {[%clk
0:00:20.4]} 45... Kh6 {[%clk 0:00:05.6]} 46. Kc4 {[%clk 0:00:20.6]} 46... Kxh5
{[%clk 0:00:06.3]} 47. b5 {[%clk 0:00:21.5]} 47... Kg4 {[%clk 0:00:07]} 48. Kc5
{[%clk 0:00:22]} 48... Be3+ {[%clk 0:00:07.5]} 49. Kc6 {[%clk 0:00:21.6]} 49...
h5 {[%clk 0:00:08.2]} 50. b6 {[%clk 0:00:21.9]} 50... Rf6+ {[%clk 0:00:08.9]}
51. Kc7 {[%clk 0:00:21.6]} 51... Rxb6 {[%clk 0:00:09.5]} 0-1

[Event "Early-Titled-Tuesday-Blitz-April-16-2024"]
[Site "Chess.com"]
[Date "2024.04.16"]
[Round "11"]
[White "IndianSchoolOfSuffering"]
[Black "Boundless_Strike"]
[Result "0-1"]
[WhiteElo "2446"]
[BlackElo "2661"]
[TimeControl "180+1"]
[EndTime "10:12:14 PDT"]
[Termination "Boundless_Strike won by resignation"]

1. Nf3 {[%clk 0:03:00.9]} 1... d6 {[%clk 0:02:59.8]} 2. d4 {[%clk 0:03:00.2]}
2... e5 {[%clk 0:03:00.6]} 3. dxe5 {[%clk 0:02:59.6]} 3... Bg4 {[%clk
0:03:01.3]} 4. c4 {[%clk 0:02:54.9]} 4... Nc6 {[%clk 0:03:00.9]} 5. Nc3 {[%clk
0:02:52.8]} 5... Qd7 {[%clk 0:02:59.5]} 6. Bf4 {[%clk 0:02:40.2]} 6... O-O-O
{[%clk 0:02:57.3]} 7. Qa4 {[%clk 0:02:28.3]} 7... dxe5 {[%clk 0:02:54.2]} 8. Rd1
{[%clk 0:02:23]} 8... Bd6 {[%clk 0:02:24.9]} 9. Be3 {[%clk 0:01:59.5]} 9... Nb4
{[%clk 0:02:15.5]} 10. Qxa7 {[%clk 0:01:26.6]} 10... Nc2+ {[%clk 0:01:17.4]} 11.
Kd2 {[%clk 0:01:25.9]} 11... Bc5+ {[%clk 0:01:17.6]} 12. Kxc2 {[%clk 0:01:25.7]}
12... Bf5+ {[%clk 0:01:17.4]} 13. Kc1 {[%clk 0:00:43]} 13... Bxa7 {[%clk
0:00:58.4]} 14. Rxd7 {[%clk 0:00:42.4]} 14... Bxe3+ {[%clk 0:00:58.4]} 15. fxe3
{[%clk 0:00:39]} 15... Rxd7 {[%clk 0:00:54.2]} 16. Nxe5 {[%clk 0:00:38.9]} 16...
Re7 {[%clk 0:00:54.5]} 17. e4 {[%clk 0:00:32.4]} 17... Rxe5 {[%clk 0:00:50.4]}
18. exf5 {[%clk 0:00:32.2]} 18... Rxf5 {[%clk 0:00:49.2]} 19. g3 {[%clk
0:00:31.5]} 19... Kb8 {[%clk 0:00:44.5]} 20. Bg2 {[%clk 0:00:31.4]} 20... Nf6
{[%clk 0:00:42.8]} 21. Bf3 {[%clk 0:00:25.7]} 21... c6 {[%clk 0:00:41.5]} 22.
Rd1 {[%clk 0:00:24.3]} 22... Kc7 {[%clk 0:00:41.2]} 23. b4 {[%clk 0:00:23]}
23... Rd8 {[%clk 0:00:41.4]} 24. Rxd8 {[%clk 0:00:22.3]} 24... Kxd8 {[%clk
0:00:42.3]} 25. Kd2 {[%clk 0:00:22.3]} 25... g5 {[%clk 0:00:36.8]} 26. g4 {[%clk
0:00:22.4]} 26... Re5 {[%clk 0:00:34.5]} 27. h3 {[%clk 0:00:22.3]} 27... Re8
{[%clk 0:00:22.1]} 28. a4 {[%clk 0:00:21.4]} 28... Rh8 {[%clk 0:00:20.1]} 29. b5
{[%clk 0:00:20.3]} 29... Kc7 {[%clk 0:00:19.7]} 30. Ke3 {[%clk 0:00:19.9]} 30...
h5 {[%clk 0:00:20]} 31. Kd4 {[%clk 0:00:20.1]} 31... hxg4 {[%clk 0:00:20.2]} 32.
hxg4 {[%clk 0:00:20.9]} 32... Re8 {[%clk 0:00:19.6]} 33. c5 {[%clk 0:00:19.3]}
33... Nd7 {[%clk 0:00:19.1]} 34. Ne4 {[%clk 0:00:15.7]} 34... Re5 {[%clk
0:00:15.3]} 35. bxc6 {[%clk 0:00:09.5]} 35... bxc6 {[%clk 0:00:15.4]} 36. e3
{[%clk 0:00:10]} 36... Rd5+ {[%clk 0:00:15.7]} 37. Kc4 {[%clk 0:00:09.7]} 37...
Ne5+ {[%clk 0:00:16]} 38. Kb4 {[%clk 0:00:07.7]} 38... Nxf3 {[%clk 0:00:16.4]}
39. Nd6 {[%clk 0:00:07.6]} 39... Ne5 {[%clk 0:00:14.2]} 40. a5 {[%clk 0:00:08]}
40... Rd1 {[%clk 0:00:13.8]} 41. a6 {[%clk 0:00:07.6]} 41... Ra1 {[%clk
0:00:13.8]} 42. Ne8+ {[%clk 0:00:06.5]} 42... Kd8 {[%clk 0:00:13.2]} 43. Nf6
{[%clk 0:00:07.4]} 43... Rxa6 {[%clk 0:00:11.1]} 44. Kc3 {[%clk 0:00:08.3]}
44... Ra4 {[%clk 0:00:10.4]} 45. Ne4 {[%clk 0:00:07.2]} 45... Rxe4 {[%clk
0:00:10]} 0-1

[Event "Early-Titled-Tuesday-Blitz-April-16-2024"]
[Site "Chess.com"]
[Date "2024.04.16"]
[Round "11"]
[White "DarZay"]
[Black "shirovin"]
[Result "1-0"]
[WhiteElo "2292"]
[BlackElo "2051"]
[TimeControl "180+1"]
[EndTime "10:12:14 PDT"]
[Termination "DarZay won on time"]

1. e4 {[%clk 0:02:54]} 1... c5 {[%clk 0:02:59.7]} 2. Nf3 {[%clk 0:02:53.6]} 2...
d6 {[%clk 0:03:00.1]} 3. d3 {[%clk 0:02:53.9]} 3... Nc6 {[%clk 0:02:57.5]} 4.
Nc3 {[%clk 0:02:53.3]} 4... g6 {[%clk 0:02:57.3]} 5. g3 {[%clk 0:02:52.5]} 5...
Bg7 {[%clk 0:02:57.9]} 6. Bg2 {[%clk 0:02:52.9]} 6... e6 {[%clk 0:02:58.6]} 7.
Be3 {[%clk 0:02:51.7]} 7... Nge7 {[%clk 0:02:59.2]} 8. Nd2 {[%clk 0:02:50.9]}
8... O-O {[%clk 0:02:57.9]} 9. f4 {[%clk 0:02:50.7]} 9... Rb8 {[%clk 0:02:50.7]}
10. a4 {[%clk 0:02:49.6]} 10... a6 {[%clk 0:02:48.7]} 11. O-O {[%clk 0:02:47.8]}
11... b5 {[%clk 0:02:46.4]} 12. axb5 {[%clk 0:02:48.1]} 12... axb5 {[%clk
0:02:45.8]} 13. e5 {[%clk 0:02:48.4]} 13... Nd4 {[%clk 0:02:31.4]} 14. exd6
{[%clk 0:02:45.1]} 14... Qxd6 {[%clk 0:02:23.8]} 15. Nce4 {[%clk 0:02:45.1]}
15... Qc7 {[%clk 0:02:23]} 16. c3 {[%clk 0:02:44.6]} 16... Ndf5 {[%clk
0:02:12.3]} 17. Bxc5 {[%clk 0:02:44.3]} 17... Rd8 {[%clk 0:02:10]} 18. Ra7
{[%clk 0:02:39.7]} 18... Bb7 {[%clk 0:01:57.8]} 19. d4 {[%clk 0:02:25.2]} 19...
Ne3 {[%clk 0:01:49.1]} 20. Qe2 {[%clk 0:02:21.9]} 20... Nxf1 {[%clk 0:01:46.4]}
21. Qxf1 {[%clk 0:02:21.7]} 21... Nd5 {[%clk 0:01:38.8]} 22. Qxb5 {[%clk
0:02:18.8]} 22... Ne3 {[%clk 0:01:33]} 23. Bf3 {[%clk 0:02:10.1]} 23... Bc6
{[%clk 0:01:17.8]} 24. Qa6 {[%clk 0:02:06.3]} 24... Rb7 {[%clk 0:01:09.9]} 25.
Ra8 {[%clk 0:01:33.2]} 25... Rxa8 {[%clk 0:00:52.9]} 26. Qxa8+ {[%clk
0:01:32.6]} 26... Rb8 {[%clk 0:00:52.5]} 27. Qa2 {[%clk 0:01:30.5]} 27... Bf8
{[%clk 0:00:41.7]} 28. Bxf8 {[%clk 0:01:19.7]} 28... Kxf8 {[%clk 0:00:40.9]} 29.
Qa6 {[%clk 0:01:17]} 29... Kg7 {[%clk 0:00:22.4]} 30. b4 {[%clk 0:01:12.5]}
30... Bb5 {[%clk 0:00:19.4]} 31. Qa3 {[%clk 0:01:08.8]} 31... Nc4 {[%clk
0:00:15.1]} 32. Qc1 {[%clk 0:01:05.3]} 32... Nxd2 {[%clk 0:00:14.5]} 33. Qxd2
{[%clk 0:01:05.6]} 33... Qc4 {[%clk 0:00:13.5]} 34. Nc5 {[%clk 0:01:02.5]} 34...
Rd8 {[%clk 0:00:09.6]} 35. Bg2 {[%clk 0:00:54.2]} 35... Be8 {[%clk 0:00:08.6]}
36. Qd3 {[%clk 0:00:51.5]} 36... Qxd3 {[%clk 0:00:08.6]} 37. Nxd3 {[%clk
0:00:51.4]} 37... Rc8 {[%clk 0:00:09.1]} 38. Nc5 {[%clk 0:00:50.6]} 38... Bc6
{[%clk 0:00:09.3]} 39. Bxc6 {[%clk 0:00:49.4]} 39... Rxc6 {[%clk 0:00:09.4]} 40.
c4 {[%clk 0:00:49.7]} 40... Kf8 {[%clk 0:00:08.7]} 41. b5 {[%clk 0:00:50.1]}
41... Rc8 {[%clk 0:00:08]} 42. b6 {[%clk 0:00:49.1]} 42... Ke7 {[%clk
0:00:07.1]} 43. Kf2 {[%clk 0:00:40.5]} 43... Kd6 {[%clk 0:00:06.6]} 44. Ke3
{[%clk 0:00:38.9]} 44... Kc6 {[%clk 0:00:06.3]} 45. b7 {[%clk 0:00:38.2]} 45...
Rd8 {[%clk 0:00:05.9]} 46. Ke4 {[%clk 0:00:35.2]} 46... f6 {[%clk 0:00:04.3]}
47. Nxe6 {[%clk 0:00:33.7]} 47... Re8 {[%clk 0:00:04.6]} 48. d5+ {[%clk
0:00:33.9]} 48... Kxb7 {[%clk 0:00:04.8]} 49. c5 {[%clk 0:00:33.8]} 49... Ra8
{[%clk 0:00:02.9]} 50. d6 {[%clk 0:00:33]} 50... Ra4+ {[%clk 0:00:02.8]} 51. Kd5
{[%clk 0:00:33.1]} 51... Ra1 {[%clk 0:00:02.6]} 52. c6+ {[%clk 0:00:33.3]} 52...
Kb6 {[%clk 0:00:02.2]} 53. d7 {[%clk 0:00:33.5]} 53... Rd1+ {[%clk 0:00:01.4]}
54. Nd4 {[%clk 0:00:33.6]} 1-0

[Event "Early-Titled-Tuesday-Blitz-April-16-2024"]
[Site "Chess.com"]
[Date "2024.04.16"]
[Round "11"]
[White "Nikolakis2014"]
[Black "djano"]
[Result "1-0"]
[WhiteElo "2731"]
[BlackElo "2598"]
[TimeControl "180+1"]
[EndTime "10:12:16 PDT"]
[Termination "Nikolakis2014 won by resignation"]

1. Nf3 {[%clk 0:02:55.5]} 1... c5 {[%clk 0:02:59.5]} 2. c4 {[%clk 0:02:54.8]}
2... g6 {[%clk 0:02:59.4]} 3. d4 {[%clk 0:02:54.1]} 3... cxd4 {[%clk 0:03:00.2]}
4. Nxd4 {[%clk 0:02:54.5]} 4... Bg7 {[%clk 0:02:59.9]} 5. e4 {[%clk 0:02:54.7]}
5... Nc6 {[%clk 0:02:52.4]} 6. Be3 {[%clk 0:02:54.5]} 6... Nf6 {[%clk 0:02:53]}
7. Nc3 {[%clk 0:02:54.6]} 7... O-O {[%clk 0:02:49.7]} 8. Be2 {[%clk 0:02:54.7]}
8... d6 {[%clk 0:02:50.1]} 9. O-O {[%clk 0:02:54]} 9... Nxd4 {[%clk 0:02:48.7]}
10. Bxd4 {[%clk 0:02:53.3]} 10... Bd7 {[%clk 0:02:49.3]} 11. Qc2 {[%clk
0:02:51.4]} 11... Bc6 {[%clk 0:02:49]} 12. Rad1 {[%clk 0:02:50.8]} 12... Nd7
{[%clk 0:02:31.9]} 13. Bxg7 {[%clk 0:02:46.5]} 13... Kxg7 {[%clk 0:02:32.8]} 14.
b4 {[%clk 0:02:44.1]} 14... b6 {[%clk 0:02:31.9]} 15. Qb2 {[%clk 0:02:35.9]}
15... f6 {[%clk 0:02:31.9]} 16. h3 {[%clk 0:02:33.4]} 16... Rc8 {[%clk
0:02:22.5]} 17. Bg4 {[%clk 0:02:28.7]} 17... Rc7 {[%clk 0:02:17.6]} 18. Rfe1
{[%clk 0:02:12.6]} 18... Ne5 {[%clk 0:02:16.4]} 19. Be2 {[%clk 0:02:07.9]} 19...
g5 {[%clk 0:02:16.4]} 20. Qb3 {[%clk 0:02:04]} 20... Qa8 {[%clk 0:02:08.8]} 21.
Nd5 {[%clk 0:01:56.4]} 21... Bxd5 {[%clk 0:02:08.7]} 22. exd5 {[%clk 0:01:56.7]}
22... Rfc8 {[%clk 0:02:06.9]} 23. Bf1 {[%clk 0:01:55.9]} 23... Qb7 {[%clk
0:02:01.5]} 24. Rd4 {[%clk 0:01:55]} 24... b5 {[%clk 0:01:47.7]} 25. cxb5 {[%clk
0:01:48.2]} 25... Rc3 {[%clk 0:01:48.2]} 26. Qb1 {[%clk 0:01:46.2]} 26... Qb6
{[%clk 0:01:44.8]} 27. Red1 {[%clk 0:01:33.2]} 27... Rc2 {[%clk 0:01:43.6]} 28.
R4d2 {[%clk 0:01:23.8]} 28... R2c3 {[%clk 0:01:40.2]} 29. Qf5 {[%clk 0:01:20.2]}
29... R8c7 {[%clk 0:01:24.3]} 30. a4 {[%clk 0:01:18.3]} 30... Qb8 {[%clk
0:00:57.7]} 31. a5 {[%clk 0:01:15.2]} 31... Rb3 {[%clk 0:00:54.9]} 32. Rd4
{[%clk 0:01:13.1]} 32... Rb2 {[%clk 0:00:46.3]} 33. f4 {[%clk 0:00:51.2]} 33...
Ng6 {[%clk 0:00:43.7]} 34. fxg5 {[%clk 0:00:48.3]} 34... fxg5 {[%clk 0:00:44.6]}
35. Qxg5 {[%clk 0:00:48.3]} 35... Rcc2 {[%clk 0:00:42.2]} 36. R4d2 {[%clk
0:00:43.1]} 36... Qc7 {[%clk 0:00:40.8]} 37. Qe3 {[%clk 0:00:18.8]} 37... Ne5
{[%clk 0:00:35.7]} 38. Qg5+ {[%clk 0:00:18.3]} 38... Ng6 {[%clk 0:00:35.1]} 39.
Qe3 {[%clk 0:00:18.5]} 39... Ne5 {[%clk 0:00:35.4]} 40. Qd4 {[%clk 0:00:17.8]}
40... Ra2 {[%clk 0:00:30.5]} 41. Kh1 {[%clk 0:00:16.1]} 41... Rab2 {[%clk
0:00:20.6]} 42. Qxb2 {[%clk 0:00:14.9]} 42... Rxb2 {[%clk 0:00:20.1]} 43. Rxb2
{[%clk 0:00:15.1]} 43... Qc3 {[%clk 0:00:20.8]} 44. Rdb1 {[%clk 0:00:15.2]}
44... Qd4 {[%clk 0:00:17.9]} 45. b6 {[%clk 0:00:15.1]} 45... axb6 {[%clk
0:00:17.8]} 46. a6 {[%clk 0:00:15.7]} 46... b5 {[%clk 0:00:17.9]} 47. Bxb5
{[%clk 0:00:16]} 47... Qxd5 {[%clk 0:00:17.6]} 48. Bf1 {[%clk 0:00:16.5]} 48...
Nf3 {[%clk 0:00:14.7]} 49. gxf3 {[%clk 0:00:15.6]} 49... Qxf3+ {[%clk
0:00:14.4]} 50. Bg2 {[%clk 0:00:15.9]} 50... Qa3 {[%clk 0:00:14.7]} 51. b5
{[%clk 0:00:15.7]} 51... d5 {[%clk 0:00:14.1]} 52. b6 {[%clk 0:00:15.9]} 1-0

[Event "Early-Titled-Tuesday-Blitz-April-16-2024"]
[Site "Chess.com"]
[Date "2024.04.16"]
[Round "11"]
[White "lamomiajunior"]
[Black "chess123456s"]
[Result "1-0"]
[WhiteElo "2735"]
[BlackElo "2603"]
[TimeControl "180+1"]
[EndTime "10:12:17 PDT"]
[Termination "lamomiajunior won by checkmate"]

1. d4 {[%clk 0:03:00.9]} 1... d5 {[%clk 0:02:59.4]} 2. Nc3 {[%clk 0:03:01.2]}
2... Nf6 {[%clk 0:02:58]} 3. Bf4 {[%clk 0:03:01.6]} 3... c5 {[%clk 0:02:55.2]}
4. e4 {[%clk 0:03:01.1]} 4... Nxe4 {[%clk 0:02:54.3]} 5. Bb5+ {[%clk 0:03:00.6]}
5... Nc6 {[%clk 0:02:37]} 6. Nxe4 {[%clk 0:03:00.6]} 6... dxe4 {[%clk
0:02:35.2]} 7. Ne2 {[%clk 0:03:00.3]} 7... e6 {[%clk 0:02:15.6]} 8. dxc5 {[%clk
0:02:57.2]} 8... Qxd1+ {[%clk 0:02:10]} 9. Rxd1 {[%clk 0:02:56.3]} 9... Bxc5
{[%clk 0:02:09.1]} 10. Nc3 {[%clk 0:02:56.9]} 10... f5 {[%clk 0:01:56.7]} 11.
Bxc6+ {[%clk 0:02:55.7]} 11... bxc6 {[%clk 0:01:55.9]} 12. Bd6 {[%clk
0:02:54.9]} 12... Bxd6 {[%clk 0:01:47.4]} 13. Rxd6 {[%clk 0:02:55.8]} 13... Ke7
{[%clk 0:01:42.4]} 14. Rxc6 {[%clk 0:02:54.5]} 14... Bd7 {[%clk 0:01:40.2]} 15.
Rc7 {[%clk 0:02:53.4]} 15... Rab8 {[%clk 0:01:37.3]} 16. b3 {[%clk 0:02:51.7]}
16... Rhc8 {[%clk 0:01:36.2]} 17. Rxc8 {[%clk 0:02:51.5]} 17... Rxc8 {[%clk
0:01:37.1]} 18. Kd2 {[%clk 0:02:51.5]} 18... Bc6 {[%clk 0:01:35.9]} 19. Re1
{[%clk 0:02:50.2]} 19... Rd8+ {[%clk 0:01:34.3]} 20. Kc1 {[%clk 0:02:50.4]}
20... g5 {[%clk 0:01:26.1]} 21. a4 {[%clk 0:02:42.2]} 21... Kf6 {[%clk
0:01:25.7]} 22. g3 {[%clk 0:02:32]} 22... h5 {[%clk 0:01:07.8]} 23. b4 {[%clk
0:02:27.9]} 23... h4 {[%clk 0:01:06.8]} 24. b5 {[%clk 0:02:26.5]} 24... Ba8
{[%clk 0:01:04.6]} 25. a5 {[%clk 0:02:21.3]} 25... hxg3 {[%clk 0:01:03.3]} 26.
hxg3 {[%clk 0:02:21.3]} 26... Ke5 {[%clk 0:01:03.1]} 27. f3 {[%clk 0:02:14.3]}
27... Rc8 {[%clk 0:00:59.4]} 28. Kb2 {[%clk 0:02:11.6]} 28... Bd5 {[%clk
0:00:54.3]} 29. fxe4 {[%clk 0:02:08.3]} 29... Bxe4 {[%clk 0:00:53.9]} 30. Kb3
{[%clk 0:01:40]} 30... Kd4 {[%clk 0:00:45.6]} 31. Rd1+ {[%clk 0:01:38]} 31...
Ke3 {[%clk 0:00:44.3]} 32. Rd7 {[%clk 0:01:35.6]} 32... f4 {[%clk 0:00:43]} 33.
gxf4 {[%clk 0:01:35.3]} 33... gxf4 {[%clk 0:00:43.9]} 34. Re7 {[%clk 0:01:31.9]}
34... Bf5 {[%clk 0:00:36.2]} 35. Rxa7 {[%clk 0:00:36.1]} 35... f3 {[%clk
0:00:33.1]} 36. b6 {[%clk 0:00:33.5]} 36... f2 {[%clk 0:00:15.9]} 37. Nd1+
{[%clk 0:00:32.7]} 37... Ke2 {[%clk 0:00:16.2]} 38. Nxf2 {[%clk 0:00:33.1]}
38... Kxf2 {[%clk 0:00:13.8]} 39. b7 {[%clk 0:00:28.7]} 39... Rb8 {[%clk
0:00:13.9]} 40. a6 {[%clk 0:00:29]} 40... Be4 {[%clk 0:00:14]} 41. Kb4 {[%clk
0:00:26.8]} 41... e5 {[%clk 0:00:13.4]} 42. Kc5 {[%clk 0:00:27.2]} 42... Bg2
{[%clk 0:00:09.8]} 43. Kd6 {[%clk 0:00:27.6]} 43... e4 {[%clk 0:00:10]} 44. Ra8
{[%clk 0:00:27.8]} 44... Rxa8 {[%clk 0:00:05.7]} 45. bxa8=Q {[%clk 0:00:27.8]}
45... e3 {[%clk 0:00:06.6]} 46. Qf8+ {[%clk 0:00:26.5]} 46... Bf3 {[%clk
0:00:06.6]} 47. a7 {[%clk 0:00:26.3]} 47... e2 {[%clk 0:00:06.7]} 48. a8=Q
{[%clk 0:00:25.7]} 48... e1=Q {[%clk 0:00:05.3]} 49. Qaxf3+ {[%clk 0:00:26.2]}
49... Kg1 {[%clk 0:00:05.2]} 50. Qg7+ {[%clk 0:00:26.5]} 50... Kh2 {[%clk
0:00:06.1]} 51. Qh5+ {[%clk 0:00:26.8]} 51... Qh4 {[%clk 0:00:04.8]} 52. Qxh4#
{[%clk 0:00:27.4]} 1-0

[Event "Early-Titled-Tuesday-Blitz-April-16-2024"]
[Site "Chess.com"]
[Date "2024.04.16"]
[Round "11"]
[White "Rawnsdale"]
[Black "Aleksandar-Topalov"]
[Result "0-1"]
[WhiteElo "2482"]
[BlackElo "2366"]
[TimeControl "180+1"]
[EndTime "10:12:20 PDT"]
[Termination "Aleksandar-Topalov won by checkmate"]

1. e4 {[%clk 0:02:55.5]} 1... e6 {[%clk 0:03:00]} 2. d4 {[%clk 0:02:53.3]} 2...
d5 {[%clk 0:03:00.1]} 3. e5 {[%clk 0:02:53.9]} 3... Ne7 {[%clk 0:02:59.4]} 4.
Nf3 {[%clk 0:02:53.4]} 4... Qd7 {[%clk 0:02:59.5]} 5. c4 {[%clk 0:02:50.3]} 5...
b6 {[%clk 0:02:58.3]} 6. Nc3 {[%clk 0:02:50.3]} 6... Bb7 {[%clk 0:02:55.5]} 7.
Be3 {[%clk 0:02:47.6]} 7... Nbc6 {[%clk 0:02:54]} 8. Rc1 {[%clk 0:02:43.3]} 8...
a6 {[%clk 0:02:50.7]} 9. Be2 {[%clk 0:02:38.4]} 9... dxc4 {[%clk 0:02:50.7]} 10.
Bxc4 {[%clk 0:02:38.3]} 10... Nb4 {[%clk 0:02:50.9]} 11. O-O {[%clk 0:02:35.9]}
11... Nbd5 {[%clk 0:02:48.9]} 12. Qe2 {[%clk 0:02:30.8]} 12... Nxc3 {[%clk
0:02:37.7]} 13. bxc3 {[%clk 0:02:26.4]} 13... b5 {[%clk 0:02:26.4]} 14. Bb3
{[%clk 0:02:23.2]} 14... Nd5 {[%clk 0:02:25.8]} 15. Rfd1 {[%clk 0:02:20.5]}
15... Ba3 {[%clk 0:02:22.8]} 16. Rc2 {[%clk 0:02:18.5]} 16... O-O {[%clk
0:02:21.9]} 17. c4 {[%clk 0:02:11.8]} 17... bxc4 {[%clk 0:02:20.8]} 18. Bxc4
{[%clk 0:02:12.3]} 18... Rfc8 {[%clk 0:02:01.9]} 19. Ng5 {[%clk 0:01:52.3]}
19... h6 {[%clk 0:01:59.2]} 20. Qd3 {[%clk 0:01:43.5]} 20... hxg5 {[%clk
0:01:38.1]} 21. Qxa3 {[%clk 0:01:41.3]} 21... Nf4 {[%clk 0:01:34.1]} 22. Bxf4
{[%clk 0:01:36.5]} 22... gxf4 {[%clk 0:01:34]} 23. Qc5 {[%clk 0:01:34.3]} 23...
f3 {[%clk 0:01:25.5]} 24. d5 {[%clk 0:01:33.4]} 24... exd5 {[%clk 0:01:20.4]}
25. Bxd5 {[%clk 0:01:33.2]} 25... Bxd5 {[%clk 0:01:19.8]} 26. Rxd5 {[%clk
0:01:33.1]} 26... Qg4 {[%clk 0:01:19.2]} 27. Kf1 {[%clk 0:01:02]} 27... Qxg2+
{[%clk 0:01:17.6]} 28. Ke1 {[%clk 0:01:02.1]} 28... Rab8 {[%clk 0:01:11.9]} 29.
Kd2 {[%clk 0:01:00.6]} 29... Qf1 {[%clk 0:00:58.7]} 30. Qe3 {[%clk 0:00:56.6]}
30... Rb1 {[%clk 0:00:51.8]} 31. Kc3 {[%clk 0:00:40.6]} 31... Rb6 {[%clk
0:00:33.7]} 32. Qxf3 {[%clk 0:00:34]} 32... Qa1+ {[%clk 0:00:33.2]} 33. Kd2
{[%clk 0:00:32.7]} 33... Re8 {[%clk 0:00:19.9]} 34. Rxc7 {[%clk 0:00:16.9]}
34... Qxa2+ {[%clk 0:00:18.3]} 35. Rc2 {[%clk 0:00:16.4]} 35... Rb2 {[%clk
0:00:18.4]} 36. Rc5 {[%clk 0:00:14.9]} 36... Rxc2+ {[%clk 0:00:16.2]} 37. Rxc2
{[%clk 0:00:15.8]} 37... Qa5+ {[%clk 0:00:15.9]} 38. Kd1 {[%clk 0:00:14.1]}
38... Qxe5 {[%clk 0:00:15.8]} 39. Rd2 {[%clk 0:00:13.5]} 39... Qe1+ {[%clk
0:00:15]} 40. Kc2 {[%clk 0:00:13.8]} 40... Rc8+ {[%clk 0:00:15.3]} 41. Kb3
{[%clk 0:00:09.6]} 41... Qxd2 {[%clk 0:00:14.9]} 42. Qh3 {[%clk 0:00:08.6]}
42... Qd5+ {[%clk 0:00:12.5]} 43. Kb2 {[%clk 0:00:08.4]} 43... Rb8+ {[%clk
0:00:12.6]} 44. Kc1 {[%clk 0:00:08.1]} 44... Qc5+ {[%clk 0:00:12.3]} 45. Kd2
{[%clk 0:00:08]} 45... Rb2+ {[%clk 0:00:12.3]} 46. Kd3 {[%clk 0:00:08.5]} 46...
Rb3+ {[%clk 0:00:11.5]} 47. Ke4 {[%clk 0:00:08.9]} 47... Rxh3 {[%clk 0:00:11.5]}
48. f4 {[%clk 0:00:09.1]} 48... Rxh2 {[%clk 0:00:10.8]} 49. f5 {[%clk
0:00:08.1]} 49... Re2+ {[%clk 0:00:10.8]} 50. Kf4 {[%clk 0:00:08.5]} 50... Qe5+
{[%clk 0:00:10.7]} 51. Kg5 {[%clk 0:00:09.4]} 51... Rg2+ {[%clk 0:00:10.6]} 52.
Kh5 {[%clk 0:00:09.9]} 52... Qh2# {[%clk 0:00:10.6]} 0-1